bitfinex/quotes_SOLUSD_20251223
["timestamp","ask_amount","ask_price","bid_price","bid_amount"]
[1766493683739,0.66,124.4,124.37,11.42821577]
[1766493685936,0.66,124.4,124.37,3.38791564]
[1766493686439,0.66,124.4,124.37,11.42831894]
[1766493687138,0.66,124.41,124.37,11.42831894]
[1766493687319,2.71791564,124.41,124.35,0.67]
[1766493687520,0.66,124.4,124.36,2.71791564]
[1766493687724,0.66,124.4,124.36,3.38791564]
[1766493688042,0.66,124.4,124.36,11.42905379]
[1766493691313,0.66,124.4,124.37,2.71791564]
[1766493692137,0.66,124.4,124.36,8.71113815]
[1766493692439,0.66,124.4,124.37,2.71791564]
[1766493707954,0.66,124.4,124.37,3.38791564]
[1766493708254,0.66,124.4,124.38,2.71791564]
[1766493709024,0.66,124.41,124.39,2.71791564]
[1766493709229,0.66,124.41,124.4,2.71791564]
[1766493710451,0.66,124.41,124.39,2.71791564]
[1766493711737,0.66,124.41,124.37,8.04113815]
[1766493712048,0.66,124.4,124.36,0.67]
[1766493712255,0.66,124.4,124.37,2.71791564]
[1766493713955,0.66,124.4,124.37,3.38791564]
[1766493716360,0.66,124.4,124.37,11.42838793]
[1766493717976,0.66,124.42,124.39,3.38791564]
[1766493718151,0.66,124.43,124.4,3.38791564]
[1766493718539,0.66,124.43,124.4,11.42645897]
[1766493719160,0.66,124.43,124.4,3.38791564]
[1766493720768,10.63767296,124.44,124.4,10.75626376]
[1766493720942,3.37791564,124.41,124.38,0.67]
[1766493721280,0.66,124.4,124.38,24.14389762]
[1766493721443,0.66,124.39,124.36,0.67]
[1766493721642,2.71791564,124.39,124.35,37.29948622]
[1766493721939,0.66,124.38,124.34,11.43011772]
[1766493722563,0.66,124.38,124.35,2.71791564]
[1766493722857,0.66,124.38,124.35,3.38791564]
[1766493723672,0.66,124.38,124.35,0.67]
[1766493723845,0.66,124.38,124.35,3.38791564]
[1766493726569,0.66,124.38,124.35,0.67]
[1766493727570,0.7,124.39,124.36,3.38791564]
[1766493727968,11.13767296,124.4,124.37,0.67]
[1766493728668,0.7,124.4,124.37,3.38791564]
[1766493729252,0.7,124.4,124.37,0.67]
[1766493730452,22.82345012,124.41,124.4,6.71]
[1766493730653,22.82345012,124.41,124.4,0.99300367]
[1766493730856,10.7559987,124.41,124.4,0.99300367]
[1766493731066,13.97596247,124.41,124.4,0.99300367]
[1766493731978,12.99736651,124.41,124.4,0.99300367]
[1766493732277,4.95928345,124.41,124.4,0.99300367]
[1766493732478,0.7,124.41,124.4,0.99300367]
[1766493734658,2.43931968,124.41,124.4,0.27300367]
[1766493734967,10.47725875,124.41,124.4,0.21300367]
[1766493735367,10.47725875,124.41,124.37,0.68]
[1766493735678,2.42931968,124.4,124.37,0.68]
[1766493735981,0.69,124.39,124.37,0.68]
[1766493736275,17.82129873,124.4,124.37,0.68]
[1766493736484,18.51129873,124.4,124.37,0.68]
[1766493736784,18.51129873,124.4,124.36,0.68]
[1766493736785,0.69,124.39,124.36,0.68]
[1766493738265,16.08197905,124.4,124.38,1.73931968]
[1766493738461,25.11767296,124.42,124.39,2.41931968]
[1766493738661,14.68,124.42,124.4,0.68]
[1766493738862,0.2,124.44,124.41,0.68]
[1766493739077,14.88,124.44,124.41,2.41931968]
[1766493739285,15.57,124.44,124.41,2.41931968]
[1766493740477,15.57,124.44,124.41,0.68]
[1766493740865,0.69,124.43,124.4,0.68]
[1766493741074,0.69,124.43,124.4,2.41931968]
[1766493744892,0.69,124.43,124.4,0.68]
[1766493745103,0.69,124.43,124.4,2.41931968]
[1766493745791,15.57,124.44,124.41,0.68]
[1766493746168,0.2,124.44,124.42,2.41931968]
[1766493750477,0.89,124.44,124.41,8.03790661]
[1766493750782,0.89,124.44,124.41,10.45722629]
[1766493751296,0.89,124.44,124.42,0.68]
[1766493751488,0.2,124.44,124.42,0.68]
[1766493754900,0.2,124.44,124.4,8.03834704]
[1766493755108,0.69,124.43,124.4,2.41931968]
[1766493755297,0.69,124.43,124.4,1.73931968]
[1766493755490,8.92613655,124.44,124.41,0.68]
[1766493755690,28.67836597,124.44,124.41,2.41931968]
[1766493756003,8.92613655,124.44,124.41,2.41931968]
[1766493757088,8.92613655,124.44,124.41,0.68]
[1766493757284,8.92613655,124.44,124.41,2.41931968]
[1766493757494,33.07003417,124.44,124.41,2.41931968]
[1766493757903,8.92613655,124.44,124.41,2.41931968]
[1766493758604,33.07003417,124.44,124.41,2.41931968]
[1766493758903,25.03389762,124.44,124.41,2.41931968]
[1766493759196,0.89,124.44,124.41,2.41931968]
[1766493760002,0.89,124.44,124.41,0.68]
[1766493760198,0.89,124.44,124.41,2.41931968]
[1766493764608,0.2,124.44,124.4,0.66]
[1766493764809,0.69,124.43,124.41,1.73931968]
[1766493765296,0.69,124.43,124.4,0.66]
[1766493768001,0.69,124.43,124.39,10.43828107]
[1766493768197,8.03676549,124.43,124.39,2.39931968]
[1766493768398,0.69,124.42,124.39,2.39931968]
[1766493770614,0.69,124.42,124.39,1.73931968]
[1766493770912,0.69,124.42,124.4,0.66]
[1766493771408,0.69,124.42,124.4,2.39931968]
[1766493773518,0.69,124.42,124.4,0.66]
[1766493775818,8.72676549,124.43,124.4,0.66]
[1766493776218,8.72676549,124.43,124.4,2.39931968]
[1766493776796,15.57,124.44,124.41,2.39931968]
[1766493777702,15.57,124.44,124.41,0.66]
[1766493779198,23.60616033,124.44,124.41,0.66]
[1766493780611,15.57,124.44,124.41,2.39931968]
[1766493781697,14.88,124.44,124.42,0.66]
[1766493783123,0.2,124.44,124.42,0.66]
[1766493783623,0.2,124.44,124.4,10.43727826]
[1766493783927,0.89,124.44,124.4,10.43727826]
[1766493784107,0.89,124.44,124.41,0.66]
[1766493785916,0.69,124.43,124.4,0.66]
[1766493788010,0.69,124.43,124.4,2.39931968]
[1766493790332,0.2,124.44,124.4,1.73931968]
[1766493790507,0.2,124.44,124.42,0.67]
[1766493806452,8.89609888,124.44,124.41,0.67]
[1766493807440,0.66,124.43,124.41,0.67]
[1766493809228,0.2,124.44,124.42,0.67]
[1766493817556,0.89,124.44,124.42,0.67]
[1766493821875,0.89,124.44,124.41,0.68]
[1766493827868,8.2361943,124.44,124.38,20.0989875]
[1766493828166,2.71566206,124.43,124.4,0.68]
[1766493828366,0.68,124.42,124.39,0.68]
[1766493828762,2.71566206,124.43,124.39,0.68]
[1766493829362,10.75245126,124.43,124.39,0.68]
[1766493830274,8.0367892,124.43,124.39,0.68]
[1766493830451,25.43245126,124.43,124.39,0.68]
[1766493831869,25.43245126,124.43,124.39,2.71566206]
[1766493832186,25.43245126,124.43,124.4,0.68]
[1766493833372,26.11245126,124.43,124.4,0.68]
[1766493835281,23.3967892,124.43,124.4,0.68]
[1766493837176,23.3967892,124.43,124.4,3.39566206]
[1766493838479,23.3967892,124.43,124.4,0.68]
[1766493839485,22.7167892,124.43,124.4,0.68]
[1766493840293,14.68,124.43,124.41,0.68]
[1766493840496,11.21767296,124.47,124.4,10.75404324]
[1766493840696,0.78,124.47,124.43,0.68]
[1766493841003,11.21767296,124.47,124.45,0.68]
[1766493841671,0.78,124.47,124.45,0.68]
[1766493842278,0.68,124.46,124.43,0.68]
[1766493842478,3.39566206,124.45,124.42,0.68]
[1766493842784,0.68,124.44,124.42,0.68]
[1766493843296,3.39566206,124.44,124.41,0.68]
[1766493844000,0.68,124.43,124.4,0.68]
[1766493844186,3.39566206,124.43,124.39,0.68]
[1766493844387,3.39566206,124.43,124.39,3.39566206]
[1766493844697,0.68,124.42,124.39,3.39566206]
[1766493846497,14.68,124.44,124.39,10.75456316]
[1766493846702,15.35,124.44,124.41,3.38566206]
[1766493847081,14.68,124.44,124.41,3.38566206]
[1766493847292,0.67,124.43,124.41,3.38566206]
[1766493848201,0.67,124.43,124.41,0.67]
[1766493855206,0.67,124.43,124.41,1.73828789]
[1766493857612,0.67,124.43,124.41,2.40828789]
[1766493857822,14.68,124.44,124.42,2.40828789]
[1766493858006,19.14333817,124.45,124.42,2.40828789]
[1766493858318,0.67,124.44,124.42,2.40828789]
[1766493860107,0.67,124.44,124.42,1.73828789]
[1766493860288,8.70603479,124.44,124.42,1.73828789]
[1766493860794,8.70603479,124.44,124.41,2.40828789]
[1766493861417,8.70603479,124.44,124.41,0.67]
[1766493861708,8.70603479,124.44,124.41,2.40828789]
[1766493863910,8.70603479,124.44,124.41,0.67]
[1766493864211,8.70603479,124.44,124.41,2.40828789]
[1766493864911,8.70603479,124.44,124.41,0.67]
[1766493865298,8.70603479,124.44,124.41,2.40828789]
[1766493866014,8.70603479,124.44,124.41,0.67]
[1766493866217,8.70603479,124.44,124.41,2.40828789]
[1766493866913,8.70603479,124.44,124.41,0.67]
[1766493867214,8.74603479,124.44,124.41,0.67]
[1766493867415,8.74603479,124.44,124.41,2.40828789]
[1766493867711,0.71,124.44,124.41,2.40828789]
[1766493869319,8.74609563,124.44,124.41,2.40828789]
[1766493873513,8.74609563,124.44,124.41,1.73828789]
[1766493873722,8.74609563,124.44,124.42,0.66]
[1766493874021,8.74609563,124.44,124.41,2.39828789]
[1766493877413,0.7,124.43,124.39,0.67]
[1766493877616,0.7,124.43,124.39,1.73828789]
[1766493877817,0.7,124.43,124.4,0.67]
[1766493878319,0.7,124.43,124.4,2.40828789]
[1766493880632,8.03702369,124.43,124.4,0.67]
[1766493880812,8.72702369,124.43,124.4,0.67]
[1766493881217,8.72702369,124.43,124.4,2.40828789]
[1766493883621,22.71629892,124.44,124.41,2.40828789]
[1766493883946,18.47315667,124.45,124.43,0.67]
[1766493884126,19.16315667,124.45,124.42,2.40828789]
[1766493887208,19.16315667,124.45,124.43,0.67]
[1766493887834,10.43767296,124.45,124.43,0.67]
[1766493888135,23.40502785,124.46,124.43,2.40828789]
[1766493888833,23.40502785,124.46,124.44,0.67]
[1766493889015,19.26190132,124.47,124.45,0.67]
[1766493889216,19.26190132,124.47,124.45,0.11184248]
[1766493889734,19.26190132,124.47,124.44,1.73828789]
[1766493891126,0.69,124.46,124.43,2.40828789]
[1766493896144,0.69,124.46,124.43,0.67]
[1766493896347,0.69,124.46,124.43,2.40828789]
[1766493900834,0.69,124.46,124.44,1.73828789]
[1766493901033,0.69,124.46,124.44,2.40828789]
[1766493901737,0.79,124.47,124.45,2.40828789]
[1766493901937,0.1,124.47,124.45,2.40828789]
[1766493902248,0.79,124.47,124.45,2.40828789]
[1766493902948,0.69,124.46,124.43,1.73828789]
[1766493903149,0.69,124.46,124.42,2.40828789]
[1766493903353,0.69,124.46,124.43,0.67]
[1766493904549,0.1,124.47,124.45,2.40828789]
[1766493904740,0.1,124.47,124.46,0.67]
[1766493905253,0.1,124.47,124.45,2.40828789]
[1766493905761,0.79,124.47,124.45,2.40828789]
[1766493906462,0.79,124.47,124.44,2.40828789]
[1766493907655,12.37596085,124.49,124.44,2.40828789]
[1766493908357,10.63767296,124.49,124.44,2.40828789]
[1766493908653,12.37596085,124.49,124.44,2.40828789]
[1766493908852,8.03341902,124.48,124.44,2.40828789]
[1766493909759,0.7,124.47,124.44,2.40828789]
[1766493910251,8.73410191,124.47,124.44,2.40828789]
[1766493914048,8.73410191,124.47,124.44,3.38430143]
[1766493916866,8.73410191,124.47,124.44,0.67]
[1766493917843,8.03410191,124.47,124.44,0.67]
[1766493918044,0.7,124.46,124.44,0.67]
[1766493919168,8.73410191,124.47,124.44,0.67]
[1766493919361,8.73410191,124.47,124.44,3.38430143]
[1766493923270,0.7,124.47,124.44,3.38430143]
[1766493924175,0.7,124.47,124.44,2.71430143]
[1766493924387,0.7,124.47,124.44,3.43430143]
[1766493924876,8.73368837,124.48,124.45,0.72]
[1766493925885,8.03368837,124.48,124.45,0.72]
[1766493926055,0.7,124.47,124.45,0.72]
[1766493930954,8.03368837,124.48,124.45,0.72]
[1766493931180,8.73368837,124.48,124.45,0.72]
[1766493934078,8.03368837,124.48,124.45,0.72]
[1766493934260,0.69,124.47,124.45,0.72]
[1766493935878,0.19,124.47,124.41,0.72]
[1766493936054,14.68,124.46,124.42,3.43430143]
[1766493936255,2.71430143,124.44,124.39,3.43430143]
[1766493936465,17.39430143,124.44,124.4,0.72]
[1766493937862,17.64430143,124.44,124.4,0.72]
[1766493938061,17.64430143,124.44,124.4,3.43430143]
[1766493938263,8.03664711,124.43,124.4,3.43430143]
[1766493939959,8.03664711,124.43,124.38,8.03986036]
[1766493939960,22.96604586,124.44,124.41,3.42430143]
[1766493941190,22.96604586,124.44,124.41,0.71]
[1766493945976,14.68,124.44,124.41,0.71]
[1766493949278,14.68,124.44,124.42,0.71]
[1766493969346,33.15263625,124.46,124.43,0.68]
[1766493969542,15.35,124.47,124.44,3.39430143]
[1766493970015,15.35,124.47,124.44,0.68]
[1766493970329,23.3844096,124.47,124.44,0.68]
[1766493971221,0.67,124.46,124.44,0.68]
[1766493975342,8.70475535,124.46,124.44,0.68]
[1766493975643,33.93806246,124.46,124.44,0.68]
[1766493975847,25.90330711,124.46,124.44,0.68]
[1766493978744,0.67,124.46,124.44,0.68]
[1766493984745,22.71437197,124.47,124.44,0.68]
[1766493985046,23.38437197,124.47,124.44,0.68]
[1766493987152,23.38437197,124.47,124.44,2.41747369]
[1766493988154,22.71437197,124.47,124.45,0.68]
[1766493988653,23.38437197,124.47,124.45,0.68]
[1766493989150,22.71437197,124.47,124.45,0.68]
[1766493989337,14.68,124.47,124.46,0.68]
[1766493990050,14.68,124.47,124.45,2.41747369]
[1766493991157,14.68,124.47,124.45,0.68]
[1766493991363,15.35,124.47,124.45,2.41747369]
[1766493991533,14.68,124.47,124.45,2.41747369]
[1766493992753,14.68,124.47,124.46,0.7]
[1766493994559,18.47139047,124.48,124.46,0.7]
[1766493994961,19.19139047,124.48,124.46,0.7]
[1766493996568,19.19139047,124.48,124.45,2.43747369]
[1766494000264,19.19139047,124.48,124.45,0.7]
[1766494000562,19.19139047,124.48,124.45,2.43747369]
[1766494003367,19.19139047,124.48,124.45,0.7]
[1766494003567,19.19139047,124.48,124.45,2.43747369]
[1766494005965,18.47139047,124.48,124.46,0.69]
[1766494006767,19.15139047,124.48,124.44,0.69]
[1766494007069,19.15139047,124.48,124.45,2.42747369]
[1766494007768,18.47139047,124.48,124.46,0.69]
[1766494009265,23.59277505,124.49,124.46,2.22747369]
[1766494015883,23.59277505,124.49,124.46,0.49]
[1766494016563,0.68,124.46,124.43,1.73747369]
[1766494016881,0.68,124.46,124.43,2.22747369]
[1766494017061,0.68,124.46,124.43,0.49]
[1766494017266,0.68,124.46,124.43,1.73747369]
[1766494017478,0.68,124.46,124.44,0.49]
[1766494019979,0.68,124.46,124.44,2.22747369]
[1766494020156,0.68,124.46,124.44,0.49]
[1766494021276,0.68,124.46,124.44,2.22747369]
[1766494021469,0.68,124.47,124.44,2.22747369]
[1766494025787,0.68,124.46,124.44,2.22747369]
[1766494026000,0.68,124.46,124.44,0.49]
[1766494026886,33.31059719,124.47,124.44,0.49]
[1766494027888,32.60059719,124.47,124.43,1.73747369]
[1766494028190,0.71,124.46,124.43,2.22747369]
[1766494029491,0.71,124.46,124.43,1.73747369]
[1766494029687,0.71,124.46,124.44,0.49]
[1766494030291,8.74410812,124.47,124.44,0.49]
[1766494033395,8.74410812,124.47,124.44,2.22747369]
[1766494035295,8.03410812,124.47,124.44,2.22747369]
[1766494035596,8.74410812,124.47,124.44,2.22747369]
[1766494035975,8.03410812,124.47,124.44,3.20457181]
[1766494036175,0.71,124.46,124.44,3.20457181]
[1766494037301,0.71,124.45,124.41,0.49]
[1766494037603,0.71,124.45,124.41,3.20457181]
[1766494038799,0.71,124.45,124.42,2.71457181]
[1766494041613,0.71,124.45,124.42,3.20457181]
[1766494042805,0.71,124.45,124.42,11.24176648]
[1766494044906,0.71,124.45,124.42,8.52719467]
[1766494045107,0.71,124.45,124.42,11.24176648]
[1766494045695,15.39,124.46,124.43,3.20457181]
[1766494047511,3.42457181,124.45,124.41,0.49]
[1766494047807,0.71,124.44,124.41,3.20457181]
[1766494048311,0.71,124.44,124.41,0.49]
[1766494048511,0.71,124.44,124.41,3.20457181]
[1766494051915,0.71,124.44,124.4,8.52841513]
[1766494052288,0.71,124.44,124.4,11.24298694]
[1766494054431,2.71457181,124.44,124.39,14.68]
[1766494054605,0.72,124.42,124.38,11.24391543]
[1766494054915,0.72,124.42,124.38,3.20457181]
[1766494057906,3.43457181,124.42,124.38,3.20457181]
[1766494058222,0.66,124.41,124.38,3.20457181]
[1766494059616,0.66,124.41,124.37,10.75489211]
[1766494060119,0.66,124.41,124.37,11.24489211]
[1766494062623,0.66,124.41,124.38,0.49]
[1766494063322,0.66,124.41,124.38,3.20457181]
[1766494063708,0.66,124.41,124.38,11.24444041]
[1766494064015,0.66,124.41,124.38,0.49]
[1766494064199,0.66,124.41,124.38,3.20457181]
[1766494064917,8.03801754,124.41,124.37,2.71457181]
[1766494065122,0.66,124.4,124.37,2.71457181]
[1766494065821,0.66,124.4,124.37,3.20457181]
[1766494067016,0.66,124.4,124.37,0.49]
[1766494067222,0.66,124.4,124.37,3.20457181]
[1766494070421,0.66,124.4,124.37,0.49]
[1766494070625,0.66,124.4,124.37,3.20457181]
[1766494078907,0.66,124.4,124.37,0.49]
[1766494079331,0.66,124.4,124.38,3.20457181]
[1766494081834,0.66,124.4,124.38,2.71457181]
[1766494085638,0.66,124.4,124.37,3.20457181]
[1766494094763,0.66,124.4,124.38,2.71457181]
[1766494095863,8.03801754,124.41,124.39,2.71457181]
[1766494096042,0.65,124.42,124.39,3.20457181]
[1766494098048,8.03734413,124.42,124.39,2.22859784]
[1766494098249,0.65,124.41,124.39,2.22859784]
[1766494100160,0.65,124.41,124.39,0.49]
[1766494100350,0.65,124.41,124.39,2.22859784]
[1766494103867,0.65,124.41,124.39,1.73859784]
[1766494104569,0.65,124.41,124.38,2.22859784]
[1766494107684,46.86466284,124.43,124.38,8.03973943]
[1766494107884,8.6868784,124.43,124.4,2.22859784]
[1766494108184,0.65,124.42,124.4,2.22859784]
[1766494110912,0.65,124.42,124.4,1.73859784]
[1766494111082,15.33,124.43,124.4,2.22859784]
[1766494111413,0.65,124.43,124.4,2.22859784]
[1766494118518,34.48416322,124.44,124.41,0.49]
[1766494121213,33.80416322,124.44,124.4,1.73859784]
[1766494121421,0.68,124.43,124.4,2.22859784]
[1766494123390,15.33,124.44,124.43,0.49]
[1766494123596,0.68,124.46,124.43,2.22859784]
[1766494124317,0.68,124.46,124.43,22.32948234]
[1766494128117,0.68,124.46,124.43,20.5908845]
[1766494128422,0.68,124.46,124.43,22.32948234]
[1766494129418,0.68,124.45,124.43,21.83948234]
[1766494129624,0.68,124.45,124.43,1.73859784]
[1766494129814,0.68,124.45,124.43,9.77331753]
[1766494139433,8.71542063,124.45,124.43,8.03471969]
[1766494139612,0.68,124.44,124.41,2.22859784]
[1766494139813,0.68,124.44,124.41,10.26688581]
[1766494141734,0.68,124.44,124.42,1.73859784]
[1766494142734,22.71495239,124.46,124.42,1.73859784]
[1766494142916,0.68,124.45,124.42,2.22859784]
[1766494143116,0.68,124.45,124.43,1.73859784]
[1766494147452,24.45287108,124.47,124.44,1.73859784]
[1766494147637,25.15287108,124.47,124.44,2.22859784]
[1766494147950,0.7,124.46,124.44,2.22859784]
[1766494148552,16.41859784,124.47,124.45,1.73859784]
[1766494148753,33.85113314,124.48,124.45,2.22859784]
[1766494149128,33.15113314,124.48,124.45,2.22859784]
[1766494149342,0.7,124.47,124.45,2.22859784]
[1766494150752,0.7,124.47,124.45,0.49]
[1766494153267,0.7,124.47,124.44,16.41859784]
[1766494153568,0.7,124.47,124.44,18.15719568]
[1766494153930,0.7,124.47,124.44,1.73859784]
[1766494154169,0.7,124.47,124.43,22.32286287]
[1766494154170,0.7,124.46,124.43,22.32286287]
[1766494156552,0.7,124.45,124.43,2.22859784]
[1766494158450,0.2,124.49,124.45,0.47]
[1766494158650,0.2,124.53,124.5,2.00859784]
[1766494158854,0.2,124.53,124.51,1.73859784]
[1766494159052,8.02890405,124.55,124.5,14.68]
[1766494159357,28.10116418,124.55,124.47,10.50767296]
[1766494159562,1.73859784,124.53,124.49,14.68]
[1766494159737,1.73859784,124.52,124.47,16.48859784]
[1766494159938,2.71297626,124.52,124.48,10.50767296]
[1766494160140,2.71297626,124.49,124.44,17.39297626]
[1766494160360,0.7,124.47,124.45,17.46297626]
[1766494160748,0.7,124.46,124.42,2.71297626]
[1766494161058,0.7,124.45,124.42,8.03341902]
[1766494161244,0.7,124.45,124.42,10.74639528]
[1766494163341,0.7,124.45,124.43,2.71297626]
[1766494166558,16.76875974,124.47,124.43,2.78297626]
[1766494166761,0.7,124.46,124.43,2.71297626]
[1766494166956,0.7,124.46,124.44,2.71297626]
[1766494167359,0.7,124.46,124.43,2.71297626]
[1766494169359,0.7,124.46,124.44,2.71297626]
[1766494169554,0.7,124.46,124.45,2.71297626]
[1766494169774,0.7,124.48,124.45,2.78297626]
[1766494169972,0.7,124.5,124.47,2.71297626]
[1766494170155,0.7,124.5,124.48,2.71297626]
[1766494170357,15.38,124.53,124.49,2.71297626]
[1766494170570,0.7,124.52,124.5,2.71297626]
[1766494171475,0.7,124.52,124.48,8.03331608]
[1766494171667,0.7,124.54,124.51,2.71297626]
[1766494172884,0.7,124.54,124.52,2.71297626]
[1766494174885,0.71,124.52,124.49,2.71297626]
[1766494175067,0.71,124.52,124.48,2.71297626]
[1766494175858,0.71,124.52,124.49,2.71297626]
[1766494175859,8.03119992,124.52,124.49,2.71297626]
[1766494176060,0.71,124.51,124.49,2.71297626]
[1766494176378,0.71,124.51,124.5,2.71297626]
[1766494177161,31.48283648,124.53,124.5,2.71297626]
[1766494177374,31.48283648,124.53,124.51,2.71297626]
[1766494177677,0.67,124.52,124.51,2.71297626]
[1766494177878,0.67,124.52,124.5,2.71297626]
[1766494178852,24.79642245,124.54,124.51,2.71297626]
[1766494179052,0.67,124.54,124.52,2.71297626]
[1766494179353,0.67,124.53,124.49,8.10253465]
[1766494179549,8.02955777,124.54,124.5,11.85]
[1766494179763,28.10342961,124.54,124.47,3.41297626]
[1766494180182,28.10342961,124.54,124.47,0.7]
[1766494180503,2.71297626,124.52,124.47,3.41297626]
[1766494180654,17.39297626,124.52,124.48,2.71297626]
[1766494181375,24.13030363,124.51,124.48,2.71297626]
[1766494182475,32.16203333,124.51,124.48,2.71297626]
[1766494182846,32.16203333,124.51,124.47,3.41297626]
[1766494183072,32.16203333,124.51,124.45,33.15285816]
[1766494183073,2.71297626,124.5,124.45,3.41297626]
[1766494183288,2.71297626,124.48,124.43,3.41297626]
[1766494183783,13.15064922,124.46,124.41,3.41297626]
[1766494184071,27.83064922,124.46,124.41,3.41297626]
[1766494184287,25.11767296,124.46,124.43,2.71297626]
[1766494184471,25.11767296,124.46,124.44,2.71297626]
[1766494184877,25.11767296,124.46,124.43,3.41297626]
[1766494185271,25.11767296,124.46,124.43,0.7]
[1766494185468,14.68,124.47,124.44,3.38297626]
[1766494185780,8.03301072,124.49,124.45,3.38297626]
[1766494185982,28.11565871,124.49,124.45,3.38297626]
[1766494186173,28.11565871,124.49,124.46,0.67]
[1766494186367,28.11565871,124.49,124.46,3.38297626]
[1766494186575,20.08264799,124.49,124.46,3.38297626]
[1766494187160,20.08264799,124.49,124.46,0.67]
[1766494189866,25.4253625,124.5,124.43,18.47394648]
[1766494190071,42.79270752,124.5,124.44,2.71297626]
[1766494190296,42.79270752,124.5,124.45,3.38297626]
[1766494190598,45.50568378,124.5,124.45,3.38297626]
[1766494191177,45.50568378,124.5,124.45,0.67]
[1766494191379,45.50568378,124.5,124.42,14.68]
[1766494191380,13.15064922,124.47,124.42,0.67]
[1766494191588,27.83064922,124.47,124.42,0.67]
[1766494191772,25.11767296,124.47,124.42,3.38297626]
[1766494192175,25.11767296,124.47,124.43,0.67]
[1766494192570,27.83064922,124.47,124.43,0.67]
[1766494193600,35.86529713,124.47,124.43,0.67]
[1766494194502,2.71297626,124.46,124.43,0.67]
[1766494195517,35.86529713,124.47,124.43,0.67]
[1766494197097,2.71297626,124.46,124.42,0.67]
[1766494197401,2.71297626,124.44,124.4,0.67]
[1766494197896,2.71297626,124.44,124.39,27.83064922]
[1766494197897,14.68,124.45,124.41,3.38297626]
[1766494198294,14.68,124.45,124.41,0.67]
[1766494198790,22.71572768,124.45,124.41,0.67]
[1766494198991,25.42870394,124.45,124.41,0.67]
[1766494203109,22.71572768,124.45,124.39,14.68]
[1766494203289,2.71297626,124.43,124.4,0.67]
[1766494204789,10.74949277,124.44,124.4,0.67]
[1766494205808,2.71297626,124.43,124.4,0.67]
[1766494206712,2.71297626,124.42,124.37,13.15064922]
[1766494206900,10.75091533,124.41,124.38,0.7]
[1766494209517,2.71297626,124.4,124.35,0.7]
[1766494209689,2.71297626,124.4,124.36,0.7]
[1766494209896,2.71297626,124.39,124.36,0.7]
[1766494210419,2.71297626,124.38,124.36,0.7]
[1766494210914,2.71297626,124.39,124.34,0.7]
[1766494211503,2.71297626,124.39,124.35,0.7]
[1766494211702,10.7527415,124.39,124.35,0.7]
[1766494212799,8.03976524,124.39,124.35,0.7]
[1766494213897,22.71869645,124.4,124.36,2.71297626]
[1766494214103,8.03869645,124.4,124.37,0.7]
[1766494215103,22.7181924,124.41,124.38,0.7]
[1766494216003,25.43116866,124.41,124.38,0.7]
[1766494216197,2.71297626,124.4,124.36,0.7]
[1766494217241,10.75181033,124.4,124.36,0.7]
[1766494218731,8.03883407,124.4,124.36,0.7]
[1766494223720,9.77839185,124.4,124.36,0.7]
[1766494225038,9.77839185,124.4,124.35,0.7]
[1766494225233,1.73955778,124.39,124.35,0.7]
[1766494225930,28.13529709,124.4,124.35,0.7]
[1766494225931,29.87485487,124.4,124.35,0.7]
[1766494227648,28.13529709,124.4,124.35,0.7]
[1766494227846,22.7182614,124.41,124.35,1.73955778]
[1766494228031,24.45781918,124.41,124.37,0.7]
[1766494234660,42.81310908,124.41,124.35,0.72]
[1766494234856,44.55266686,124.41,124.35,0.72]
[1766494235157,44.55266686,124.41,124.35,1.73955778]
[1766494235330,1.73955778,124.4,124.36,0.72]